[Event "*** SCC Grand Prix: Titled Tuesday Blitz"]
[Site "Chess.com"]
[Date "2020.07.07"]
[Round "8"]
[White "PSvidler"]
[Black "pastouche06"]
[Result "1-0"]
[WhiteElo "2984"]
[BlackElo "2522"]
[TimeControl "180+1"]
[EndTime "11:35:17 PDT"]
[Termination "PSvidler won by resignation"]

1. e4 {[%clk 0:03:00.9]} 1... c6 {[%clk 0:02:59.4]} 2. d4 {[%clk 0:03:00.6]}
2... d5 {[%clk 0:02:59.6]} 3. Nd2 {[%clk 0:03:00.5]} 3... dxe4 {[%clk
0:02:59.5]} 4. Nxe4 {[%clk 0:03:00.7]} 4... Nf6 {[%clk 0:03:00]} 5. Nxf6+ {[%clk
0:03:00.7]} 5... exf6 {[%clk 0:03:00.9]} 6. c3 {[%clk 0:03:00.7]} 6... Bd6
{[%clk 0:03:00.7]} 7. Bd3 {[%clk 0:03:00.5]} 7... O-O {[%clk 0:03:01]} 8. Qc2
{[%clk 0:03:00.2]} 8... Re8+ {[%clk 0:03:01.3]} 9. Be3 {[%clk 0:02:59.7]} 9...
h5 {[%clk 0:03:00.8]} 10. Nf3 {[%clk 0:02:58.4]} 10... Nd7 {[%clk 0:02:40.7]}
11. h3 {[%clk 0:02:50]} 11... Nf8 {[%clk 0:02:19.8]} 12. g4 {[%clk 0:02:48.1]}
12... Bf4 {[%clk 0:02:18.9]} 13. O-O-O {[%clk 0:02:47.6]} 13... Bxe3+ {[%clk
0:02:12.9]} 14. fxe3 {[%clk 0:02:47.7]} 14... Qd5 {[%clk 0:02:07.7]} 15. e4
{[%clk 0:02:41.1]} 15... Qxa2 {[%clk 0:02:06.8]} 16. gxh5 {[%clk 0:02:41.7]}
16... c5 {[%clk 0:01:36.4]} 17. Qg2 {[%clk 0:02:27.3]} 17... Qa1+ {[%clk
0:01:07.6]} 18. Kc2 {[%clk 0:02:20.3]} 18... Qa4+ {[%clk 0:01:06]} 19. Kb1
{[%clk 0:02:19.5]} 19... cxd4 {[%clk 0:00:31]} 20. Rhg1 {[%clk 0:02:18.9]} 20...
g6 {[%clk 0:00:28.7]} 21. hxg6 {[%clk 0:02:06.2]} 21... fxg6 {[%clk 0:00:27.7]}
22. e5 {[%clk 0:02:03]} 22... f5 {[%clk 0:00:25.5]} 23. Nxd4 {[%clk 0:02:00.9]}
23... Be6 {[%clk 0:00:22.4]} 24. Nxe6 {[%clk 0:01:45.5]} 24... Rxe6 {[%clk
0:00:23.3]} 25. Bxf5 {[%clk 0:01:46.2]} 25... Ra6 {[%clk 0:00:19.1]} 26. Qxb7
{[%clk 0:01:42.2]} 26... Qa1+ {[%clk 0:00:12.8]} 27. Kc2 {[%clk 0:01:42.1]}
27... Qa4+ {[%clk 0:00:13.7]} 28. Kc1 {[%clk 0:01:41.6]} 28... Qa1+ {[%clk
0:00:12.7]} 29. Kd2 {[%clk 0:01:37.4]} 29... Rd8+ {[%clk 0:00:10.7]} 30. Ke2
{[%clk 0:01:37.3]} 30... Rxd1 {[%clk 0:00:10.5]} 31. Rxd1 {[%clk 0:01:37.8]}
31... Qa5 {[%clk 0:00:06.6]} 32. Be4 {[%clk 0:01:31.4]} 32... Rb6 {[%clk
0:00:04.4]} 33. Qd5+ {[%clk 0:01:31.1]} 33... Qxd5 {[%clk 0:00:03.6]} 34. Bxd5+
{[%clk 0:01:32]} 34... Kg7 {[%clk 0:00:02.5]} 35. b4 {[%clk 0:01:32.5]} 35...
Nd7 {[%clk 0:00:02]} 36. e6 {[%clk 0:01:32.3]} 1-0

[Event "*** SCC Grand Prix: Titled Tuesday Blitz"]
[Site "Chess.com"]
[Date "2020.07.07"]
[Round "8"]
[White "Durarbayli"]
[Black "SGchess01"]
[Result "1-0"]
[WhiteElo "2809"]
[BlackElo "2637"]
[TimeControl "180+1"]
[EndTime "11:35:17 PDT"]
[Termination "Durarbayli won by resignation"]

1. e4 {[%clk 0:02:32.1]} 1... c5 {[%clk 0:02:56.6]} 2. Nf3 {[%clk 0:02:30.5]}
2... d6 {[%clk 0:02:56.9]} 3. d4 {[%clk 0:02:30.6]} 3... cxd4 {[%clk 0:02:57.8]}
4. Nxd4 {[%clk 0:02:31.4]} 4... Nf6 {[%clk 0:02:58.4]} 5. Nc3 {[%clk 0:02:32]}
5... Nc6 {[%clk 0:02:58.9]} 6. Bc4 {[%clk 0:02:32.1]} 6... Qb6 {[%clk
0:02:55.4]} 7. Ndb5 {[%clk 0:02:14.7]} 7... a6 {[%clk 0:02:41.8]} 8. Be3 {[%clk
0:02:12.9]} 8... Qd8 {[%clk 0:02:38.7]} 9. Nd4 {[%clk 0:02:12]} 9... Ng4 {[%clk
0:02:17.7]} 10. Nxc6 {[%clk 0:02:03.2]} 10... bxc6 {[%clk 0:02:17.2]} 11. Qf3
{[%clk 0:02:02.9]} 11... Ne5 {[%clk 0:02:16.4]} 12. Qe2 {[%clk 0:02:03.3]} 12...
e6 {[%clk 0:02:13.2]} 13. Bb3 {[%clk 0:02:00.5]} 13... Be7 {[%clk 0:02:12.1]}
14. f4 {[%clk 0:01:56.7]} 14... Nd7 {[%clk 0:02:08.6]} 15. O-O-O {[%clk
0:01:39.2]} 15... O-O {[%clk 0:02:07.4]} 16. h4 {[%clk 0:01:36.1]} 16... d5
{[%clk 0:02:07]} 17. h5 {[%clk 0:01:34.1]} 17... h6 {[%clk 0:02:06.9]} 18. g4
{[%clk 0:01:33.3]} 18... a5 {[%clk 0:01:47.9]} 19. g5 {[%clk 0:01:33.2]} 19...
hxg5 {[%clk 0:01:47.9]} 20. fxg5 {[%clk 0:01:32.3]} 20... Nc5 {[%clk 0:01:23.3]}
21. h6 {[%clk 0:01:21.2]} 21... g6 {[%clk 0:01:22]} 22. h7+ {[%clk 0:01:18.5]}
22... Kh8 {[%clk 0:01:21.3]} 23. Bd4+ {[%clk 0:01:18.7]} 23... f6 {[%clk
0:01:21.2]} 24. gxf6 {[%clk 0:01:19.6]} 24... Rxf6 {[%clk 0:01:21.3]} 25. exd5
{[%clk 0:01:02]} 25... exd5 {[%clk 0:01:14.5]} 26. Bxd5 {[%clk 0:00:51.1]} 26...
cxd5 {[%clk 0:01:11.7]} 27. Nxd5 {[%clk 0:00:52]} 27... Ne6 {[%clk 0:00:53.1]}
28. Bc3 {[%clk 0:00:39.6]} 1-0

[Event "*** SCC Grand Prix: Titled Tuesday Blitz"]
[Site "Chess.com"]
[Date "2020.07.07"]
[Round "8"]
[White "Balla_Tamas"]
[Black "MFBerna"]
[Result "1-0"]
[WhiteElo "2517"]
[BlackElo "2389"]
[TimeControl "180+1"]
[EndTime "11:35:19 PDT"]
[Termination "Balla_Tamas won on time"]

1. d4 {[%clk 0:03:00.9]} 1... Nf6 {[%clk 0:02:58.7]} 2. Bf4 {[%clk 0:03:00.6]}
2... e6 {[%clk 0:02:48.1]} 3. e3 {[%clk 0:03:00.5]} 3... Be7 {[%clk 0:02:46]} 4.
c3 {[%clk 0:02:44.4]} 4... b6 {[%clk 0:02:43.4]} 5. h3 {[%clk 0:02:42.6]} 5...
Bb7 {[%clk 0:02:43.1]} 6. Nf3 {[%clk 0:02:42.9]} 6... d6 {[%clk 0:02:40.9]} 7.
Nbd2 {[%clk 0:02:42.8]} 7... Nbd7 {[%clk 0:02:40.4]} 8. Bd3 {[%clk 0:02:42]}
8... O-O {[%clk 0:02:39.1]} 9. Bh2 {[%clk 0:02:41.6]} 9... c5 {[%clk 0:02:37.5]}
10. O-O {[%clk 0:02:41.1]} 10... Rc8 {[%clk 0:02:36.6]} 11. Qe2 {[%clk
0:02:40.9]} 11... Re8 {[%clk 0:02:31]} 12. e4 {[%clk 0:02:40.7]} 12... cxd4
{[%clk 0:02:29.4]} 13. cxd4 {[%clk 0:02:38.7]} 13... Nf8 {[%clk 0:02:28.6]} 14.
a4 {[%clk 0:02:30.3]} 14... Ng6 {[%clk 0:02:26.5]} 15. a5 {[%clk 0:02:27.5]}
15... d5 {[%clk 0:02:06.1]} 16. e5 {[%clk 0:02:24]} 16... Nd7 {[%clk 0:01:56.8]}
17. Nb3 {[%clk 0:02:18.2]} 17... Bb4 {[%clk 0:01:40.7]} 18. a6 {[%clk
0:02:10.3]} 18... Ba8 {[%clk 0:01:35.4]} 19. Bb5 {[%clk 0:02:07.6]} 19... Bc6
{[%clk 0:01:06.8]} 20. Bd3 {[%clk 0:02:06.8]} 20... Ndf8 {[%clk 0:00:43.8]} 21.
Rfc1 {[%clk 0:02:04.5]} 21... Qd7 {[%clk 0:00:36.3]} 22. h4 {[%clk 0:02:01.6]}
22... Ba4 {[%clk 0:00:23.4]} 23. Nbd2 {[%clk 0:01:59]} 23... Rxc1+ {[%clk
0:00:18.8]} 24. Rxc1 {[%clk 0:01:57]} 24... Rc8 {[%clk 0:00:19.7]} 25. Rxc8
{[%clk 0:01:52.4]} 25... Qxc8 {[%clk 0:00:20.6]} 26. h5 {[%clk 0:01:52.4]} 26...
Qc1+ {[%clk 0:00:20.8]} 27. Nf1 {[%clk 0:01:52.4]} 27... Nf4 {[%clk 0:00:16.3]}
28. Bxf4 {[%clk 0:01:48.9]} 28... Qxf4 {[%clk 0:00:17.2]} 29. Bb5 {[%clk
0:01:47.2]} 29... Bb3 {[%clk 0:00:14.2]} 30. Qd3 {[%clk 0:01:43]} 30... Ba2
{[%clk 0:00:13.1]} 31. Qc2 {[%clk 0:01:40.4]} 31... Qe4 {[%clk 0:00:11.6]} 32.
Qc7 {[%clk 0:01:29.6]} 32... Qb1 {[%clk 0:00:11.8]} 33. Qxa7 {[%clk 0:01:24.4]}
33... Qxb2 {[%clk 0:00:05.1]} 34. Qxb6 {[%clk 0:01:14.5]} 34... Qa3 {[%clk
0:00:02.6]} 35. a7 {[%clk 0:01:11]} 1-0

[Event "*** SCC Grand Prix: Titled Tuesday Blitz"]
[Site "Chess.com"]
[Date "2020.07.07"]
[Round "8"]
[White "tlomigtlis"]
[Black "Makswolf200817"]
[Result "1/2-1/2"]
[WhiteElo "2372"]
[BlackElo "2498"]
[TimeControl "180+1"]
[EndTime "11:35:24 PDT"]
[Termination "Game drawn by agreement"]

1. d4 {[%clk 0:03:00.9]} 1... d5 {[%clk 0:02:59.6]} 2. c4 {[%clk 0:03:01]} 2...
e6 {[%clk 0:02:59.4]} 3. Nc3 {[%clk 0:03:01]} 3... c6 {[%clk 0:02:59.2]} 4. e4
{[%clk 0:03:00.8]} 4... dxe4 {[%clk 0:02:57.1]} 5. Nxe4 {[%clk 0:03:01.7]} 5...
Bb4+ {[%clk 0:02:57.4]} 6. Bd2 {[%clk 0:03:01.8]} 6... Qxd4 {[%clk 0:02:57.9]}
7. Bxb4 {[%clk 0:03:02]} 7... Qxe4+ {[%clk 0:02:58.4]} 8. Ne2 {[%clk 0:03:02.6]}
8... Na6 {[%clk 0:02:56.1]} 9. Bf8 {[%clk 0:03:02.5]} 9... Qe5 {[%clk 0:02:43]}
10. Qd2 {[%clk 0:02:53.2]} 10... Bd7 {[%clk 0:02:40.9]} 11. Bd6 {[%clk
0:02:42.1]} 11... Qe4 {[%clk 0:02:35.6]} 12. O-O-O {[%clk 0:02:38.9]} 12...
O-O-O {[%clk 0:02:35.1]} 13. Nc3 {[%clk 0:02:35.2]} 13... Qh4 {[%clk 0:02:24.6]}
14. c5 {[%clk 0:02:19.1]} 14... Nf6 {[%clk 0:02:17.1]} 15. Bg3 {[%clk
0:01:55.9]} 15... Qb4 {[%clk 0:02:11.7]} 16. Qd6 {[%clk 0:01:22.1]} 16... Qxc5
{[%clk 0:02:09]} 17. Bxa6 {[%clk 0:01:21.3]} 17... Qxd6 {[%clk 0:02:07.9]} 18.
Rxd6 {[%clk 0:00:51.1]} 18... bxa6 {[%clk 0:02:06.9]} 19. Rhd1 {[%clk
0:00:51.2]} 19... Nd5 {[%clk 0:02:05.8]} 20. Ne4 {[%clk 0:00:46.2]} 20... Be8
{[%clk 0:01:58.5]} 21. Rxd8+ {[%clk 0:00:42.1]} 21... Kxd8 {[%clk 0:01:59.4]}
22. Bb8 {[%clk 0:00:42.4]} 22... f6 {[%clk 0:01:34]} 23. Bxa7 {[%clk 0:00:41.7]}
23... Bg6 {[%clk 0:01:31.7]} 24. Nc5 {[%clk 0:00:41]} 24... Ke7 {[%clk
0:01:31.4]} 25. Nxa6 {[%clk 0:00:36.1]} 25... Ra8 {[%clk 0:01:29.9]} 26. Bc5+
{[%clk 0:00:35.9]} 26... Ke8 {[%clk 0:01:27]} 27. Nb4 {[%clk 0:00:36.8]} 27...
Nxb4 {[%clk 0:01:26.6]} 28. Bxb4 {[%clk 0:00:37.7]} 28... Rxa2 {[%clk 0:01:27]}
29. Ba3 {[%clk 0:00:38]} 29... Ra1+ {[%clk 0:01:26.4]} 30. Kd2 {[%clk
0:00:38.3]} 30... Rxd1+ {[%clk 0:01:26.4]} 31. Kxd1 {[%clk 0:00:39.2]} 31... Be4
{[%clk 0:01:24.2]} 32. f3 {[%clk 0:00:39.1]} 32... Bd5 {[%clk 0:01:24.5]} 33.
Kd2 {[%clk 0:00:40]} 33... Kd7 {[%clk 0:01:19.2]} 34. Ke3 {[%clk 0:00:39.1]}
34... e5 {[%clk 0:01:19.1]} 35. Bc5 {[%clk 0:00:37.6]} 35... Ke6 {[%clk
0:01:19]} 36. b4 {[%clk 0:00:36.3]} 36... f5 {[%clk 0:01:17.2]} 37. g3 {[%clk
0:00:34.3]} 37... g5 {[%clk 0:01:16.7]} 38. f4 {[%clk 0:00:34.1]} 38... exf4+
{[%clk 0:01:13.1]} 39. gxf4 {[%clk 0:00:35]} 39... g4 {[%clk 0:01:14]} 40. Kd4
{[%clk 0:00:31.6]} 40... h5 {[%clk 0:01:13]} 41. Ke3 {[%clk 0:00:29.8]} 41... h4
{[%clk 0:01:12.2]} 42. Kf2 {[%clk 0:00:29.8]} 42... Bf3 {[%clk 0:01:10.3]} 43.
Bf8 {[%clk 0:00:28.7]} 43... Kd5 {[%clk 0:01:07.6]} 44. Be7 {[%clk 0:00:28.8]}
44... h3 {[%clk 0:01:07.3]} 45. Kg3 {[%clk 0:00:28.4]} 45... Ke4 {[%clk
0:01:04.7]} 46. Bc5 {[%clk 0:00:29.3]} 46... Kd3 {[%clk 0:01:04.8]} 47. Be7
{[%clk 0:00:29.2]} 47... Ke2 {[%clk 0:01:05.7]} 48. Bc5 {[%clk 0:00:30.1]} 48...
Kf1 {[%clk 0:01:05.9]} 49. Be7 {[%clk 0:00:30.3]} 1/2-1/2

[Event "*** SCC Grand Prix: Titled Tuesday Blitz"]
[Site "Chess.com"]
[Date "2020.07.07"]
[Round "8"]
[White "cukin84"]
[Black "alexsergeyev"]
[Result "0-1"]
[WhiteElo "2174"]
[BlackElo "2343"]
[TimeControl "180+1"]
[EndTime "11:35:25 PDT"]
[Termination "alexsergeyev won by resignation"]

1. e4 {[%clk 0:03:00.9]} 1... e5 {[%clk 0:02:59.2]} 2. Nf3 {[%clk 0:03:00.3]}
2... Nf6 {[%clk 0:02:59.1]} 3. Nxe5 {[%clk 0:02:59.8]} 3... d6 {[%clk
0:02:59.2]} 4. Nf3 {[%clk 0:02:59.4]} 4... Nxe4 {[%clk 0:02:59.1]} 5. d4 {[%clk
0:02:59.6]} 5... d5 {[%clk 0:02:58.5]} 6. Bd3 {[%clk 0:02:59.2]} 6... Nc6 {[%clk
0:02:58.5]} 7. O-O {[%clk 0:02:57.3]} 7... Be7 {[%clk 0:02:58.2]} 8. c4 {[%clk
0:02:55.8]} 8... Nf6 {[%clk 0:02:57]} 9. Nc3 {[%clk 0:02:49.8]} 9... Be6 {[%clk
0:02:54.5]} 10. Ng5 {[%clk 0:02:45.4]} 10... Nxd4 {[%clk 0:02:53.3]} 11. cxd5
{[%clk 0:02:34.2]} 11... Bxd5 {[%clk 0:02:40]} 12. Nxd5 {[%clk 0:02:31.1]} 12...
Qxd5 {[%clk 0:02:36.4]} 13. Re1 {[%clk 0:02:22.8]} 13... Nc6 {[%clk 0:02:23.3]}
14. Bf4 {[%clk 0:02:01.1]} 14... h6 {[%clk 0:01:48.3]} 15. Nf3 {[%clk
0:01:59.9]} 15... O-O-O {[%clk 0:01:38.5]} 16. Rxe7 {[%clk 0:01:30.6]} 16...
Nxe7 {[%clk 0:01:26.3]} 17. Qc2 {[%clk 0:01:30]} 17... Qc6 {[%clk 0:01:14.1]}
18. Qe2 {[%clk 0:01:25.4]} 18... Ned5 {[%clk 0:01:09.1]} 19. Bd2 {[%clk
0:01:08.2]} 19... Rhe8 {[%clk 0:01:06.3]} 20. Bf5+ {[%clk 0:01:06.9]} 20... Kb8
{[%clk 0:01:04.6]} 21. Ne5 {[%clk 0:00:58.8]} 21... Qd6 {[%clk 0:00:50.4]} 22.
f4 {[%clk 0:00:57.7]} 22... Ne7 {[%clk 0:00:42.9]} 23. Nc4 {[%clk 0:00:45.7]}
23... Qc5+ {[%clk 0:00:41]} 24. Be3 {[%clk 0:00:45.2]} 24... Qxf5 {[%clk
0:00:39.3]} 25. Rc1 {[%clk 0:00:27.7]} 25... Nc6 {[%clk 0:00:36.5]} 26. Qf2
{[%clk 0:00:26.2]} 26... Ng4 {[%clk 0:00:33.5]} 27. Qf3 {[%clk 0:00:24.9]} 27...
Nxe3 {[%clk 0:00:31.3]} 28. Nxe3 {[%clk 0:00:23.7]} 28... Qe4 {[%clk 0:00:31.2]}
0-1

[Event "*** SCC Grand Prix: Titled Tuesday Blitz"]
[Site "Chess.com"]
[Date "2020.07.07"]
[Round "8"]
[White "MashaFromRussia"]
[Black "AliKa2810"]
[Result "0-1"]
[WhiteElo "2445"]
[BlackElo "2589"]
[TimeControl "180+1"]
[EndTime "11:35:28 PDT"]
[Termination "AliKa2810 won by resignation"]

1. d4 {[%clk 0:03:00.9]} 1... Nf6 {[%clk 0:02:59.3]} 2. c4 {[%clk 0:03:01]} 2...
g6 {[%clk 0:02:59.8]} 3. Nf3 {[%clk 0:03:00.8]} 3... Bg7 {[%clk 0:03:00.1]} 4.
g3 {[%clk 0:03:01.2]} 4... O-O {[%clk 0:02:59.7]} 5. Bg2 {[%clk 0:03:01.7]} 5...
d6 {[%clk 0:03:00.3]} 6. O-O {[%clk 0:03:02]} 6... Nc6 {[%clk 0:03:00.8]} 7. Nc3
{[%clk 0:03:02]} 7... Bf5 {[%clk 0:02:59.1]} 8. d5 {[%clk 0:03:01.5]} 8... Na5
{[%clk 0:02:57.9]} 9. Nd4 {[%clk 0:03:01.3]} 9... Bd7 {[%clk 0:02:47.4]} 10. Qd3
{[%clk 0:03:01.2]} 10... c5 {[%clk 0:02:45.9]} 11. Nc2 {[%clk 0:03:00.9]} 11...
a6 {[%clk 0:02:42.3]} 12. Rb1 {[%clk 0:03:00.5]} 12... Rb8 {[%clk 0:02:37.5]}
13. Bd2 {[%clk 0:02:59.8]} 13... b5 {[%clk 0:02:35.9]} 14. b3 {[%clk 0:02:59.8]}
14... Qc7 {[%clk 0:02:29.8]} 15. e4 {[%clk 0:02:59.4]} 15... bxc4 {[%clk
0:02:22.8]} 16. bxc4 {[%clk 0:02:59.1]} 16... Ng4 {[%clk 0:01:50.9]} 17. f4
{[%clk 0:02:55.6]} 17... f5 {[%clk 0:01:50]} 18. h3 {[%clk 0:02:49.3]} 18... Nh6
{[%clk 0:01:40.8]} 19. Rfe1 {[%clk 0:02:15.5]} 19... fxe4 {[%clk 0:01:25.8]} 20.
Nxe4 {[%clk 0:02:15.2]} 20... Nf5 {[%clk 0:01:25.9]} 21. Kh2 {[%clk 0:02:12.5]}
21... h6 {[%clk 0:01:23.1]} 22. Nf2 {[%clk 0:01:59.9]} 22... Kh7 {[%clk
0:01:21.6]} 23. Be4 {[%clk 0:01:56.3]} 23... e6 {[%clk 0:00:31]} 24. g4 {[%clk
0:01:37.3]} 24... Rxb1 {[%clk 0:00:29.7]} 25. Rxb1 {[%clk 0:01:34.6]} 25... exd5
{[%clk 0:00:29.9]} 26. Bxd5 {[%clk 0:01:33.7]} 26... Nd4 {[%clk 0:00:27.3]} 27.
Nxd4 {[%clk 0:01:28.7]} 27... Bxd4 {[%clk 0:00:24.2]} 28. Ne4 {[%clk 0:01:27.2]}
28... Nc6 {[%clk 0:00:21.7]} 29. Rf1 {[%clk 0:00:57]} 29... Ne7 {[%clk
0:00:21.1]} 30. Bc3 {[%clk 0:00:52.6]} 30... Nxd5 {[%clk 0:00:21]} 31. cxd5
{[%clk 0:00:51.6]} 31... Bb5 {[%clk 0:00:20.8]} 0-1

[Event "*** SCC Grand Prix: Titled Tuesday Blitz"]
[Site "Chess.com"]
[Date "2020.07.07"]
[Round "8"]
[White "KyrgyzFighter"]
[Black "FedaMaster"]
[Result "0-1"]
[WhiteElo "2314"]
[BlackElo "2438"]
[TimeControl "180+1"]
[EndTime "11:35:30 PDT"]
[Termination "FedaMaster won by checkmate"]

1. c4 {[%clk 0:03:00.9]} 1... c5 {[%clk 0:02:59.1]} 2. Nf3 {[%clk 0:03:00.7]}
2... Nc6 {[%clk 0:02:59.6]} 3. d4 {[%clk 0:03:01.1]} 3... cxd4 {[%clk
0:02:59.2]} 4. Nxd4 {[%clk 0:03:02]} 4... g6 {[%clk 0:02:57]} 5. g3 {[%clk
0:03:02.3]} 5... Bg7 {[%clk 0:02:56.2]} 6. Nc2 {[%clk 0:03:02.4]} 6... Qb6
{[%clk 0:02:53]} 7. Nd2 {[%clk 0:02:57.2]} 7... h5 {[%clk 0:02:29.8]} 8. h4
{[%clk 0:02:55]} 8... Nh6 {[%clk 0:02:26.7]} 9. Bg2 {[%clk 0:02:54.8]} 9... Nf5
{[%clk 0:02:25.4]} 10. e4 {[%clk 0:02:43.4]} 10... Nfd4 {[%clk 0:02:19.3]} 11.
Ne3 {[%clk 0:02:43.2]} 11... d6 {[%clk 0:02:08]} 12. O-O {[%clk 0:02:42.7]}
12... Ne5 {[%clk 0:01:41.1]} 13. Rb1 {[%clk 0:02:03.5]} 13... a5 {[%clk
0:01:25.9]} 14. b3 {[%clk 0:01:38.7]} 14... a4 {[%clk 0:01:20.7]} 15. Bb2 {[%clk
0:01:34.1]} 15... a3 {[%clk 0:01:18.6]} 16. Nd5 {[%clk 0:01:33.2]} 16... axb2
{[%clk 0:00:51.8]} 17. Nxb6 {[%clk 0:01:31.3]} 17... Bg4 {[%clk 0:00:49]} 18. f3
{[%clk 0:01:23.1]} 18... Rxa2 {[%clk 0:00:49.9]} 19. fxg4 {[%clk 0:01:21.9]}
19... Nxg4 {[%clk 0:00:50.6]} 20. Qe1 {[%clk 0:00:41.3]} 20... Nc2 {[%clk
0:00:28.6]} 21. Qe2 {[%clk 0:00:40.8]} 21... Bd4+ {[%clk 0:00:25.2]} 22. Kh1
{[%clk 0:00:40.4]} 22... Bxb6 {[%clk 0:00:24.4]} 23. c5 {[%clk 0:00:37.5]} 23...
Bxc5 {[%clk 0:00:21.4]} 24. Qc4 {[%clk 0:00:36.8]} 24... Nce3 {[%clk 0:00:17.7]}
25. Qxf7+ {[%clk 0:00:36.6]} 25... Kd8 {[%clk 0:00:18.3]} 26. Qg7 {[%clk
0:00:37]} 26... Rf8 {[%clk 0:00:17.3]} 27. Rxf8+ {[%clk 0:00:36.3]} 27... Kd7
{[%clk 0:00:17]} 28. Rf7 {[%clk 0:00:35.2]} 28... d5 {[%clk 0:00:15.4]} 29. exd5
{[%clk 0:00:35.6]} 29... Nf5 {[%clk 0:00:14.9]} 30. Qxg6 {[%clk 0:00:35.3]}
30... Nxg3# {[%clk 0:00:14.7]} 0-1

[Event "*** SCC Grand Prix: Titled Tuesday Blitz"]
[Site "Chess.com"]
[Date "2020.07.07"]
[Round "8"]
[White "Konavets"]
[Black "124chess"]
[Result "1-0"]
[WhiteElo "2951"]
[BlackElo "2697"]
[TimeControl "180+1"]
[EndTime "11:35:32 PDT"]
[Termination "Konavets won by resignation"]

1. d4 {[%clk 0:03:00.9]} 1... Nf6 {[%clk 0:02:58.9]} 2. c4 {[%clk 0:03:01.3]}
2... e6 {[%clk 0:02:59.8]} 3. Nf3 {[%clk 0:03:01.5]} 3... d5 {[%clk 0:02:59.7]}
4. Nc3 {[%clk 0:03:01.8]} 4... Bb4 {[%clk 0:02:59.3]} 5. cxd5 {[%clk 0:02:59.1]}
5... exd5 {[%clk 0:03:00.2]} 6. Bg5 {[%clk 0:02:59.2]} 6... Nbd7 {[%clk
0:03:00.2]} 7. e3 {[%clk 0:02:59]} 7... h6 {[%clk 0:02:59.9]} 8. Bh4 {[%clk
0:02:59.3]} 8... g5 {[%clk 0:03:00]} 9. Bg3 {[%clk 0:02:59.6]} 9... Ne4 {[%clk
0:03:00.6]} 10. Nd2 {[%clk 0:03:00]} 10... Nxg3 {[%clk 0:02:59.6]} 11. hxg3
{[%clk 0:02:59.9]} 11... c6 {[%clk 0:03:00.5]} 12. Bd3 {[%clk 0:02:59]} 12...
Kf8 {[%clk 0:03:00.2]} 13. Qc2 {[%clk 0:02:58.7]} 13... Kg7 {[%clk 0:02:59.4]}
14. O-O-O {[%clk 0:02:59.3]} 14... Nf6 {[%clk 0:02:59.1]} 15. Kb1 {[%clk
0:02:58.9]} 15... Re8 {[%clk 0:02:55.1]} 16. Nb3 {[%clk 0:02:50.9]} 16... a5
{[%clk 0:02:52.2]} 17. Nc1 {[%clk 0:02:43.2]} 17... Be6 {[%clk 0:02:45.9]} 18.
f3 {[%clk 0:02:42.1]} 18... c5 {[%clk 0:02:37.6]} 19. dxc5 {[%clk 0:02:27.6]}
19... Bxc5 {[%clk 0:02:37.3]} 20. Rhe1 {[%clk 0:02:28.2]} 20... Rc8 {[%clk
0:02:34.6]} 21. Bb5 {[%clk 0:02:06.4]} 21... Re7 {[%clk 0:02:31.1]} 22. Qd3
{[%clk 0:01:57.4]} 22... Bb4 {[%clk 0:02:25]} 23. N1e2 {[%clk 0:01:57.2]} 23...
Qd6 {[%clk 0:02:12.8]} 24. a3 {[%clk 0:01:49.8]} 24... Bxc3 {[%clk 0:02:02.5]}
25. Nxc3 {[%clk 0:01:50.7]} 25... Qxg3 {[%clk 0:01:45.3]} 26. Qd4 {[%clk
0:01:49.8]} 26... Bf5+ {[%clk 0:01:28.8]} 27. e4 {[%clk 0:01:47.4]} 27... Rxc3
{[%clk 0:01:18.2]} 28. Qxc3 {[%clk 0:01:37.2]} 28... dxe4 {[%clk 0:01:18.6]} 29.
Ka1 {[%clk 0:01:37.4]} 29... Qe5 {[%clk 0:01:16.4]} 30. Qxa5 {[%clk 0:01:32.8]}
30... e3 {[%clk 0:01:04.5]} 31. Qb4 {[%clk 0:01:29.8]} 31... Nd5 {[%clk
0:01:02.9]} 32. Rxd5 {[%clk 0:01:28.1]} 32... Qxd5 {[%clk 0:01:00.3]} 33. Qxe7
{[%clk 0:01:28.3]} 33... Be6 {[%clk 0:00:55.4]} 34. Kb1 {[%clk 0:01:23.4]} 34...
Qxb5 {[%clk 0:00:31.5]} 35. Qb4 {[%clk 0:01:22.1]} 35... Qd3+ {[%clk 0:00:18.9]}
36. Kc1 {[%clk 0:01:16.1]} 36... Bc4 {[%clk 0:00:13.5]} 37. Qc3+ {[%clk
0:01:09.7]} 37... Qxc3+ {[%clk 0:00:13.6]} 38. bxc3 {[%clk 0:01:10.6]} 38... e2
{[%clk 0:00:14.5]} 39. Kd2 {[%clk 0:01:11.5]} 39... Kf6 {[%clk 0:00:14.5]} 40.
Rb1 {[%clk 0:01:11.9]} 40... b5 {[%clk 0:00:14.8]} 41. Rb4 {[%clk 0:01:12.2]}
41... Bd3 {[%clk 0:00:13.9]} 42. Rd4 {[%clk 0:01:12.3]} 42... Bc4 {[%clk
0:00:12.5]} 43. a4 {[%clk 0:01:12.9]} 43... Ke5 {[%clk 0:00:11.6]} 44. a5 {[%clk
0:01:13.5]} 44... Bd5 {[%clk 0:00:09.6]} 45. Kxe2 {[%clk 0:01:13.3]} 1-0